fUSD/lending_fUSD_20250930
["ID","MTS","AMOUNT","RATE_DAILY","PERIOD"]
[388511785,1759225833483,-958.35,0.00019485,2]
[388511786,1759225833494,-1698.18,0.00019485,2]
[388511787,1759225833506,-1231.53,0.00019485,2]
[388511788,1759225833516,-833.14,0.00019485,2]
[388511789,1759225833528,-765.01,0.00019485,2]
[388511790,1759225833539,-500.0,0.00019485,2]
[388511791,1759225833550,-677.33,0.00019485,2]
[388511792,1759225833561,-1157.65,0.00019485,2]
[388511793,1759225833572,-500.0,0.00019485,2]
[388511794,1759225833583,-500.0,0.00019485,2]
[388511795,1759225833593,-833.73,0.00019485,2]
[388511796,1759225833605,-500.0,0.00019485,2]
[388511797,1759225833615,-4019.02,0.00019485,2]
[388511798,1759225833626,-500.0,0.00019485,2]
[388511799,1759225833932,-500.0,0.00019485,2]
[388511800,1759225833944,-2416.27,0.00019485,2]
[388511801,1759225833954,-2501.53,0.00019485,2]
[388511802,1759225833965,-523.79,0.00019485,2]
[388511803,1759225833975,-5716.78,0.00019485,2]
[388511804,1759225833985,-4573.79,0.00019485,2]
[388511805,1759225833995,-1218.24,0.00019485,2]
[388511806,1759225834005,-536.86,0.00019485,2]
[388511807,1759225834015,-2810.99,0.00019485,2]
[388511808,1759225834024,-500.0,0.00019485,2]
[388511809,1759225834034,-2474.49,0.00019485,2]
[388511810,1759225834044,-500.0,0.00019485,2]
[388511811,1759225834053,-566.71,0.00019485,2]
[388511812,1759225834063,-1561.19,0.00019485,2]
[388511813,1759225834079,-780.51,0.00019485,2]
[388511814,1759225834089,-1597.11,0.00019485,2]
[388511815,1759225834099,-782.9,0.00019485,2]
[388511816,1759225834108,-500.0,0.00019485,2]
[388511817,1759225834118,-953.97,0.00019485,2]
[388511818,1759225834128,-871.42,0.00019485,2]
[388511819,1759225834138,-500.0,0.00019485,2]
[388511820,1759225834148,-876.46,0.00019485,2]
[388511821,1759225834158,-3640.61,0.00019485,2]
[388511822,1759225834168,-500.0,0.00019485,2]
[388511823,1759225834177,-3465.81,0.00019485,2]
[388511824,1759225834187,-5000.0,0.00019486,2]
[388511825,1759225834196,-500.0,0.00019486,2]
[388511826,1759225834205,-500.0,0.00019486,2]
[388511827,1759225834217,-331.58744974,0.00019486,2]
[388511828,1759225834378,-1311.37,0.00019485,2]
[388511829,1759225834388,-168.41255026,0.00019486,2]
[388511830,1759225834397,-500.0,0.00019486,2]
[388511831,1759225834407,-500.0,0.00019486,2]
[388511832,1759225834417,-500.0,0.00019486,2]
[388511833,1759225834427,-500.0,0.00019486,2]
[388511834,1759225834436,-500.0,0.00019486,2]
[388511835,1759225834445,-500.0,0.00019486,2]
[388511836,1759225834455,-500.0,0.00019486,2]
[388511837,1759225834470,-500.0,0.00019486,2]
[388511838,1759225834481,-500.0,0.00019486,2]
[388511839,1759225834491,-500.0,0.00019486,2]
[388511840,1759225834502,-500.0,0.00019486,2]
[388511841,1759225834511,-500.0,0.00019486,2]
[388511842,1759225834522,-500.0,0.00019486,2]
[388511843,1759225834532,-500.0,0.00019486,2]
[388511844,1759225834541,-500.0,0.00019486,2]
[388511845,1759225834551,-500.0,0.00019486,2]
[388511846,1759225834561,-500.0,0.00019486,2]
[388511847,1759225834571,-500.0,0.00019486,2]
[388511848,1759225834581,-500.0,0.00019486,2]
[388511849,1759225834594,-500.0,0.00019486,2]
[388511850,1759225834605,-500.0,0.00019486,2]
[388511851,1759225834615,-500.0,0.00019486,2]
[388511852,1759225834625,-500.0,0.00019486,2]
[388511853,1759225834634,-500.0,0.00019486,2]
[388511854,1759225834644,-500.0,0.00019486,2]
[388511855,1759225834654,-500.0,0.00019486,2]
[388511856,1759225834664,-500.0,0.00019486,2]
[388511857,1759225834675,-500.0,0.00019486,2]
[388511858,1759225834685,-699.26,0.00019486,2]
[388511859,1759225834695,-500.0,0.00019486,2]
[388511860,1759225834705,-500.0,0.00019486,2]
[388511861,1759225834716,-574.11,0.00019486,2]
[388511862,1759225834726,-500.0,0.00019486,2]
[388511863,1759225834738,-500.0,0.00019486,2]
[388511864,1759225834748,-500.0,0.00019486,2]
[388511865,1759225834758,-997.96,0.00019486,2]
[388511866,1759225834768,-500.0,0.00019486,2]
[388511867,1759225834778,-500.0,0.00019486,2]
[388511868,1759225834788,-709.77,0.00019486,2]
[388511869,1759225834798,-500.0,0.00019486,2]
[388511870,1759225834808,-500.0,0.00019486,2]
[388511871,1759225834820,-500.0,0.00019486,2]
[388511872,1759225834833,-2333.15,0.00019486,2]
[388511873,1759225834843,-659.24,0.00019486,2]
[388511874,1759225834853,-500.0,0.00019486,2]
[388511875,1759225834870,-1829.1,0.00019486,2]
[388511876,1759225834880,-1362.45,0.00019486,2]
[388511877,1759225834890,-500.0,0.00019486,2]
[388511878,1759225834900,-500.0,0.00019486,2]
[388511879,1759225834912,-500.0,0.00019486,2]
[388511880,1759225834922,-526.35183634,0.00019486,2]
[388511881,1759225834933,-500.0,0.00019486,2]
[388511882,1759225834943,-1202.33,0.00019486,2]
[388511883,1759225834954,-500.0,0.00019486,2]
[388511884,1759225834964,-568.96,0.00019486,2]
[388511885,1759225834974,-500.0,0.00019486,2]
[388511886,1759225834984,-500.0,0.00019486,2]
[388511887,1759225834995,-500.0,0.00019486,2]
[388511888,1759225835005,-500.0,0.00019486,2]
[388511889,1759225835015,-500.0,0.00019486,2]
[388511890,1759225835026,-500.0,0.00019486,2]
[388511891,1759225835036,-500.0,0.00019486,2]
[388511892,1759225835046,-500.0,0.00019486,2]
[388511893,1759225835056,-864.1,0.00019486,2]
[388511894,1759225835067,-200.0,0.00019486,2]
[388511895,1759225835077,-334.1667187,0.00019486,2]
[388511896,1759225835087,-108.55690813,0.00019486,2]
[388511897,1759225835108,-391.44309187,0.00019486,2]
[388511898,1759225835118,-750.49671201,0.00019486,2]
[388511899,1759225835130,-50.68328799,0.00019486,2]
[388511900,1759225835140,-384.50150757,0.00019486,2]
[388511906,1759225837994,-1112.85945141,0.00019433,2]
[388511907,1759225838047,-2818.58080964,0.00019433,2]
[388511908,1759225838057,-8480.20055733,0.00019485,2]
[388511909,1759225838105,-1319.15132391,0.00019485,2]
[388511910,1759225838117,-1254.78974576,0.00019485,2]
[388511911,1759225838128,-115.49849243,0.00019486,2]
[388511912,1759225838138,-500.0,0.00019486,2]
[388511913,1759225838149,-1741.84,0.00019486,2]
[388511914,1759225838159,-350.42925957,0.00019486,2]
[388511915,1759225838172,-269.47074043,0.00019486,2]
[388511916,1759225838182,-500.0,0.00019486,2]
[388511917,1759225838192,-500.0,0.00019486,2]
[388511918,1759225838202,-500.0,0.00019486,2]
[388511919,1759225838213,-500.0,0.00019486,2]
[388511920,1759225838223,-237.23867947,0.00019486,2]
[388511921,1759225838236,-262.76132053,0.00019486,2]
[388511922,1759225838247,-811.11842718,0.00019486,2]
[388511936,1759225839546,-1020.12157282,0.00019486,2]
[388511937,1759225839556,-500.0,0.00019486,2]
[388511938,1759225839566,-500.0,0.00019486,2]
[388511939,1759225839575,-500.0,0.00019486,2]
[388511940,1759225839585,-500.0,0.00019486,2]
[388511941,1759225839595,-138.79860214,0.00019486,2]
[388511942,1759225839606,-563.64139786,0.00019486,2]
[388511943,1759225839616,-852.07,0.00019486,2]
[388511944,1759225839626,-589.09025046,0.00019486,2]
[388511945,1759225839635,-2179.35453268,0.00019486,2]
[388511946,1759225839650,-457.39546732,0.00019486,2]
[388511947,1759225839659,-500.0,0.00019486,2]
[388511948,1759225839669,-500.0,0.00019486,2]
[388511949,1759225839679,-559.89,0.00019486,2]
[388511950,1759225839688,-596.57,0.00019486,2]
[388511951,1759225839698,-500.0,0.00019486,2]
[388511952,1759225839706,-620.37,0.00019486,2]
[388511953,1759225839716,-500.0,0.00019486,2]
[388511954,1759225839725,-229.47145294,0.00019486,2]
[388511955,1759225839738,-602.61854706,0.00019486,2]
[388511956,1759225839748,-500.0,0.00019486,2]
[388511957,1759225839757,-500.0,0.00019486,2]
[388511958,1759225839767,-500.0,0.00019486,2]
[388511959,1759225839776,-500.0,0.00019486,2]
[388511960,1759225839785,-500.0,0.00019486,2]
[388511962,1759225839794,-500.0,0.00019486,2]
[388511964,1759225839804,-500.0,0.00019486,2]
[388511965,1759225839813,-500.0,0.00019486,2]
[388511966,1759225839823,-500.0,0.00019486,2]
[388511967,1759225839832,-1174.57,0.00019486,2]
[388511968,1759225839842,-500.0,0.00019486,2]
[388511969,1759225839851,-500.0,0.00019486,2]
[388511970,1759225839861,-2097.9,0.00019486,2]
[388511971,1759225839870,-500.0,0.00019486,2]
[388511972,1759225839880,-500.0,0.00019486,2]
[388511973,1759225839889,-500.0,0.00019486,2]
[388511974,1759225839899,-13247.09,0.00019486,2]
[388511976,1759225839908,-500.0,0.00019486,2]
[388511977,1759225839918,-500.0,0.00019486,2]
[388511978,1759225839928,-500.0,0.00019486,2]
[388511979,1759225839937,-1601.29,0.00019486,2]
[388511980,1759225839947,-500.0,0.00019486,2]
[388511981,1759225839956,-500.0,0.00019486,2]
[388511982,1759225839965,-500.0,0.00019486,2]
[388511983,1759225839975,-500.0,0.00019486,2]
[388511984,1759225839984,-1701.62,0.00019486,2]
[388511985,1759225839994,-508.19,0.00019486,2]
[388511986,1759225840003,-500.0,0.00019486,2]
[388511987,1759225840012,-5824.96,0.00019486,2]
[388511988,1759225840022,-447.5816655,0.00019486,2]
[388511989,1759225840031,-500.0,0.00019486,2]
[388511990,1759225840040,-1648.4,0.00019486,2]
[388511991,1759225840049,-500.0,0.00019486,2]
[388511992,1759225840058,-500.0,0.00019486,2]
[388511993,1759225840068,-4160.07,0.00019486,2]
[388511994,1759225840077,-788.0,0.00019486,2]
[388511995,1759225840086,-819.62,0.00019486,2]
[388511996,1759225840096,-500.0,0.00019486,2]
[388511997,1759225840106,-500.0,0.00019486,2]
[388511998,1759225840115,-500.0,0.00019486,2]
[388511999,1759225840124,-504.37,0.00019486,2]
[388512000,1759225840133,-500.0,0.00019486,2]
[388512001,1759225840143,-507.9116017,0.00019486,2]
[388512002,1759225840155,-791.61619878,0.00019486,2]
[388512007,1759225841238,-298.51436949,0.00019485,2]
[388512008,1759225841251,-228.22720351,0.00019485,2]
[388512009,1759225841260,-52.57863027,0.00019486,2]
[388512010,1759225841276,-2561.03356925,0.00019486,2]
[388512011,1759225841286,-500.0,0.00019486,2]
[388512012,1759225841295,-500.0,0.00019486,2]
[388512013,1759225841304,-500.0,0.00019486,2]
[388512014,1759225841314,-842.57,0.00019486,2]
[388512015,1759225841323,-8369.464951,0.00019486,2]
[388512016,1759225841333,-199.68118577,0.00019486,2]
[388512017,1759225841345,-277.1229476,0.00019486,2]
[388512025,1759225843304,-900.0,0.00018967,2]
[388512026,1759225843315,-801.9,0.00019472,2]
[388512027,1759225843571,-3129.54026105,0.00019472,2]
[388512028,1759225843581,-842.55903179,0.00019484,2]
[388512029,1759225843594,-468.06096821,0.00019484,2]
[388512030,1759225843607,-430.23711707,0.00019485,2]
[388512031,1759225843617,-532.878419,0.00019485,2]
[388512032,1759225843628,-500.0,0.00019485,2]
[388512033,1759225843638,-215.98933024,0.00019485,2]
[388512034,1759225843648,-606.57695729,0.00019485,2]
[388512035,1759225843659,-174.11890903,0.00019485,2]
[388512036,1759225843669,-500.0,0.00019485,2]
[388512037,1759225843679,-23.19586663,0.00019486,2]
[388512038,1759225843690,-500.0,0.00019486,2]
[388512039,1759225843701,-4755.55,0.00019486,2]
[388512040,1759225843711,-500.0,0.00019486,2]
[388512041,1759225843721,-2088.64,0.00019486,2]
[388512042,1759225843732,-2153.84,0.00019486,2]
[388512043,1759225843743,-500.0,0.00019486,2]
[388512044,1759225843753,-500.0,0.00019486,2]
[388512045,1759225843765,-1703.34,0.00019486,2]
[388512046,1759225843776,-500.0,0.00019486,2]
[388512047,1759225843787,-500.0,0.00019486,2]
[388512048,1759225843797,-10821.08,0.00019486,2]
[388512049,1759225843807,-500.0,0.00019486,2]
[388512050,1759225843817,-500.0,0.00019486,2]
[388512051,1759225843830,-3475.44,0.00019486,2]
[388512052,1759225843840,-500.0,0.00019486,2]
[388512053,1759225843850,-500.0,0.00019486,2]
[388512054,1759225843861,-500.0,0.00019486,2]
[388512055,1759225843871,-3.79233513,0.00019486,2]
[388512056,1759225843897,-1256.73,0.00019485,2]
[388512057,1759225843908,-3309.36803236,0.00019486,2]
[388512058,1759225846195,-500.0,0.00019399,2]
[388512059,1759225846205,-106.864204,0.00019399,2]
[388512060,1759225846269,-459.55076818,0.00019399,2]
[388512061,1759225846279,-675.38303182,0.00019485,2]
[388512062,1759225846361,-487.267185,0.00019485,2]
[388512167,1759226245968,-250.0,0.00017,2]
[388512801,1759227036041,-242.00709894,0.00017366,2]
[388512802,1759227036052,-242.00709894,0.0001737,2]
[388512803,1759227036062,-24.66441784,0.00017382,2]
[388512804,1759227036096,-217.3426811,0.00017382,2]
[388512805,1759227036106,-183.42659474,0.00017384,2]
[388512806,1759227036116,-242.00709894,0.00017386,2]
[388512807,1759227036126,-251.47878834,0.0001739,2]
[388512808,1759227036136,-251.47878834,0.0001739,2]
[388512809,1759227036146,-251.47878834,0.00017391,2]
[388512810,1759227036155,-183.42659474,0.00017391,2]
[388512811,1759227036164,-183.42659474,0.00017396,2]
[388512812,1759227036174,-251.47878834,0.000174,2]
[388512813,1759227036183,-713.38758408,0.00017409,2]
[388512814,1759227036193,-277.98334873,0.0001741,2]
[388512815,1759227036203,-713.38758408,0.00017413,2]
[388512816,1759227036212,-251.47878834,0.00017426,2]
[388512817,1759227036222,-713.38758408,0.00017436,2]
[388512818,1759227036231,-183.42659474,0.00017437,2]
[388512819,1759227036241,-277.98334873,0.00017437,2]
[388512820,1759227036251,-183.42659474,0.00017437,2]
[388512821,1759227036260,-277.98334873,0.00017441,2]
[388512822,1759227036269,-277.98334873,0.00017454,2]
[388512823,1759227036279,-277.98334873,0.00017455,2]
[388512824,1759227036290,-251.47878834,0.00017459,2]
[388512825,1759227036299,-242.00709894,0.00017461,2]
[388512826,1759227036309,-251.47878834,0.00017464,2]
[388512827,1759227036318,-183.42659474,0.00017469,2]
[388512828,1759227036327,-277.98334873,0.00017473,2]
[388512829,1759227036337,-713.38758408,0.00017474,2]
[388512830,1759227036347,-713.38758408,0.00017475,2]
[388512831,1759227036356,-713.38758408,0.0001748,2]
[388512832,1759227036370,-242.00709894,0.00017483,2]
[388512833,1759227036379,-183.42659474,0.00017487,2]
[388512834,1759227036389,-713.38758408,0.00017489,2]
[388512836,1759227036399,-242.00709894,0.0001749,2]
[388512837,1759227036409,-277.98334873,0.00017496,2]
[388512838,1759227036418,-1200.0,0.00017531,2]
[388512839,1759227036428,-150.0,0.00017532,2]
[388512840,1759227036439,-150.0,0.00017532,2]
[388512841,1759227036448,-85.42912806,0.00017532,2]
[388512842,1759227036470,-64.57087194,0.00017532,2]
[388512843,1759227036479,-150.0,0.00017532,2]
[388512844,1759227036489,-150.0,0.00017532,2]
[388512845,1759227036498,-150.0,0.00017532,2]
[388512846,1759227036508,-8.24396006,0.00017532,2]
[388512847,1759227036519,-144.34866648,0.00017532,2]
[388512848,1759227036529,-150.0,0.00017532,2]
[388512849,1759227036538,-150.0,0.00017532,2]
[388512850,1759227036548,-150.0,0.00017532,2]
[388512851,1759227036557,-200.0,0.00017859,2]
[388512852,1759227036567,-151.0,0.00017859,2]
[388512853,1759227036577,-151.0,0.00017859,2]
[388512855,1759227036587,-151.0,0.00017859,2]
[388512857,1759227036596,-151.0,0.00017859,2]
[388512859,1759227036609,-200.0,0.00017859,2]
[388512861,1759227036618,-151.0,0.00017859,2]
[388512863,1759227036628,-28616.36269335,0.0001787,2]
[388512866,1759227036637,-500.0,0.00017886,2]
[388512868,1759227036647,-192.74,0.00017983,2]
[388512869,1759227036657,-1500.0,0.00018014,2]
[388512870,1759227036666,-150.0,0.00018018,2]
[388512871,1759227036676,-404.40830224,0.00018035,2]
[388512872,1759227036685,-250.0,0.00018061,2]
[388512873,1759227036695,-300.0,0.0001818,2]
[388512874,1759227036704,-150.0,0.00018181,2]
[388512875,1759227036714,-150.0,0.00018181,2]
[388512876,1759227036723,-248.21404957,0.000182,2]
[388512877,1759227036733,-587.68488562,0.00018203,2]
[388512878,1759227036743,-666.0,0.00018204,3]
[388512879,1759227036753,-217.68,0.0001823,2]
[388512880,1759227036762,-335.2,0.0001823,2]
[388512881,1759227036771,-610.0,0.00018238,2]
[388512882,1759227036781,-1000.0,0.0001835,2]
[388512883,1759227036790,-150.0,0.000184,2]
[388512884,1759227036800,-150.0,0.00018427,7]
[388512885,1759227036810,-150.0,0.00018505,2]
[388512886,1759227036820,-150.0,0.00018505,2]
[388512887,1759227036830,-150.0,0.00018505,2]
[388512888,1759227036840,-150.0,0.00018505,2]
[388512889,1759227036850,-150.0,0.00018505,2]
[388512890,1759227036859,-150.0,0.00018505,2]
[388512891,1759227036869,-1416.42,0.000186,7]
[388512892,1759227036878,-156.09,0.00018678,2]
[388512893,1759227036887,-8813.21594684,0.00018706,2]
[388512894,1759227036897,-322.6107,0.00018706,2]
[388512895,1759227036906,-7965.41053268,0.00018706,2]
[388512896,1759227036916,-595.01383255,0.00018706,2]
[388512897,1759227036925,-695.39793187,0.00018706,2]
[388512898,1759227036935,-200.0,0.00018706,2]
[388512899,1759227036945,-200.0,0.00018706,2]
[388512900,1759227036955,-239.84119403,0.00018706,2]
[388512901,1759227036965,-200.0,0.00018706,2]
[388512902,1759227036975,-200.0,0.00018706,2]
[388512903,1759227036985,-168.0,0.00018756,2]
[388512904,1759227036995,-8096.90366152,0.00018761,2]
[388512905,1759227037006,-150.0,0.0001883,2]
[388512906,1759227037015,-150.0,0.0001883,2]
[388512907,1759227037024,-152.0,0.00018846,3]
[388512908,1759227037034,-474.52590314,0.00018963,2]
[388512909,1759227037044,-5196.4,0.00018965,7]
[388512910,1759227037054,-1857.57,0.00018965,7]
[388512911,1759227037063,-1929.198,0.00018967,2]
[388512912,1759227037073,-12475.433,0.00018967,2]
[388512913,1759227037082,-1180.0,0.00018967,2]
[388512914,1759227037091,-150.0,0.00018992,2]
[388512915,1759227037101,-772.0,0.00019111,2]
[388512916,1759227037110,-151.0,0.00019178,2]
[388512917,1759227037120,-1680.0,0.00019231,2]
[388512918,1759227037129,-772.0,0.00019265,2]
[388512919,1759227037139,-6998.2276,0.00019284,2]
[388512920,1759227037148,-300.0,0.00019285,2]
[388512921,1759227037158,-591.63119991,0.00019286,2]
[388512922,1759227037167,-772.0,0.00019293,2]
[388512923,1759227037178,-204.24526275,0.00019366,2]
[388512924,1759227037189,-588.9752,0.00019366,2]
[388512925,1759227037198,-423.71859054,0.00019367,2]
[388512926,1759227037224,-1369.66854565,0.00019367,2]
[388512927,1759227037301,-1569.69036111,0.00019367,2]
[388512928,1759227037313,-996.80573654,0.00019367,2]
[388512929,1759227037325,-28.110569,0.00019367,2]
[388512930,1759227037335,-159.11827983,0.00019367,2]
[388512931,1759227037345,-243.74338217,0.00019374,2]
[388512932,1759227038546,-317.16124603,0.00019374,2]
[388512933,1759227038556,-150.28129942,0.00019383,2]
[388512934,1759227038567,-161.50922692,0.00019383,2]
[388512936,1759227038576,-3302.69181657,0.00019384,2]
[388512938,1759227038612,-1697.30818343,0.00019384,2]
[388512939,1759227038622,-159.44039609,0.00019384,2]
[388512940,1759227038632,-150.0,0.00019384,2]
[388512941,1759227038642,-150.0,0.00019384,2]
[388512942,1759227038653,-500.0,0.00019384,2]
[388512943,1759227038663,-150.0,0.00019384,2]
[388512944,1759227038673,-50862.2658,0.00019386,2]
[388512945,1759227038683,-563.6423,0.00019386,2]
[388512946,1759227038693,-4387.99380275,0.00019399,2]
[388512947,1759227038703,-1998.0,0.000194,2]
[388512948,1759227038713,-1266.07038912,0.00019419,2]
[388512949,1759227038724,-4387.99380275,0.00019432,2]
[388512950,1759227038735,-560.90462815,0.00019462,2]
[388512951,1759227038747,-151.0,0.00019462,2]
[388512952,1759227038757,-4387.99380275,0.00019464,2]
[388512953,1759227038768,-424.6038701,0.00019464,2]
[388512954,1759227038778,-151.19253117,0.00019464,2]
[388512955,1759227038789,-500.0,0.00019464,2]
[388512956,1759227038799,-1021.98,0.00019464,2]
[388512957,1759227038809,-500.0,0.00019464,2]
[388512958,1759227038820,-221.1541038,0.00019464,2]
[388512959,1759227038831,-500.0,0.00019464,2]
[388512960,1759227038840,-3294.74,0.00019464,2]
[388512961,1759227038850,-1120.89,0.00019464,2]
[388512962,1759227038859,-500.0,0.00019464,2]
[388512963,1759227038870,-1635.19,0.00019464,2]
[388512964,1759227038880,-518.18,0.00019464,2]
[388512965,1759227038889,-1050.76,0.00019464,2]
[388512966,1759227038899,-2852.59,0.00019465,2]
[388512967,1759227038909,-2976.61,0.00019465,2]
[388512968,1759227038918,-11054.141627,0.00019465,2]
[388512969,1759227038930,-526.741573,0.00019465,2]
[388512970,1759227038940,-532.878419,0.00019465,2]
[388512971,1759227038950,-459.578725,0.00019465,2]
[388512972,1759227038959,-5814.975967,0.00019465,2]
[388512973,1759227038969,-500.0,0.00019465,2]
[388512974,1759227038982,-8369.464951,0.00019465,2]
[388512975,1759227038991,-5226.98,0.00019465,2]
[388512976,1759227039002,-1316.87,0.00019465,2]
[388512977,1759227039012,-500.0,0.00019465,2]
[388512978,1759227039021,-2064.1,0.00019465,2]
[388512979,1759227039031,-500.0,0.00019465,2]
[388512980,1759227039040,-1135.63,0.00019465,2]
[388512981,1759227039051,-3330.63,0.00019465,2]
[388512982,1759227039060,-5445.36,0.00019465,2]
[388512983,1759227039070,-500.0,0.00019465,2]
[388512984,1759227039080,-2683.96,0.00019465,2]
[388512985,1759227039090,-368.8336396,0.00019465,2]
[388512986,1759227039100,-593.04,0.00019465,2]
[388512987,1759227039110,-3327.09,0.00019465,2]
[388512988,1759227039120,-2646.33,0.00019465,2]
[388512989,1759227039130,-3328.16,0.00019465,2]
[388512990,1759227039140,-5202.55,0.00019465,2]
[388512991,1759227039149,-500.0,0.00019465,2]
[388512992,1759227039159,-1468.66,0.00019465,2]
[388512993,1759227039169,-1551.88,0.00019465,2]
[388512994,1759227039179,-3682.12,0.00019465,2]
[388512995,1759227039188,-500.0,0.00019465,2]
[388512996,1759227039199,-1159.05,0.00019465,2]
[388512997,1759227039210,-1966.55,0.00019465,2]
[388512998,1759227039219,-4643.81,0.00019465,2]
[388512999,1759227039228,-500.0,0.00019465,2]
[388513000,1759227039238,-3406.73,0.00019465,2]
[388513001,1759227039247,-4701.48,0.00019465,2]
[388513002,1759227039257,-1109.42,0.00019465,2]
[388513003,1759227039267,-1999.86,0.00019465,2]
[388513004,1759227039276,-1086.82,0.00019465,2]
[388513005,1759227039286,-1180.22,0.00019465,2]
[388513006,1759227039296,-799.0,0.00019465,2]
[388513007,1759227039305,-7488.57,0.00019465,2]
[388513008,1759227039314,-500.0,0.00019465,2]
[388513009,1759227039324,-500.0,0.00019465,2]
[388513010,1759227039334,-3652.88,0.00019465,2]
[388513011,1759227039344,-500.0,0.00019465,2]
[388513012,1759227039353,-2315.59,0.00019465,2]
[388513013,1759227039365,-500.0,0.00019465,2]
[388513014,1759227039375,-17557.24,0.00019465,2]
[388513015,1759227039384,-820.6,0.00019465,2]
[388513016,1759227039393,-610.17,0.00019465,2]
[388513017,1759227039403,-334.56289888,0.00019465,2]
[388513018,1759227039414,-4383.21,0.00019465,2]
[388513019,1759227039423,-3010.89,0.00019465,2]
[388513020,1759227039432,-500.0,0.00019465,2]
[388513021,1759227039444,-576.9,0.00019465,2]
[388513022,1759227039453,-1795.9,0.00019465,2]
[388513023,1759227039462,-3851.56,0.00019465,2]
[388513024,1759227039471,-5723.07,0.00019465,2]
[388513025,1759227039480,-1063.08,0.00019465,2]
[388513026,1759227039489,-3734.93,0.00019465,2]
[388513027,1759227039499,-1750.0,0.00019465,2]
[388513028,1759227039507,-2397.3,0.00019465,2]
[388513029,1759227039517,-500.0,0.00019465,2]
[388513030,1759227039525,-1165.28,0.00019465,2]
[388513031,1759227039535,-858.31,0.00019465,2]
[388513032,1759227039545,-500.0,0.00019465,2]
[388513033,1759227039555,-2773.95,0.00019465,2]
[388513034,1759227039564,-1332.78,0.00019465,2]
[388513035,1759227039574,-4282.39,0.00019465,2]
[388513036,1759227039583,-514.49,0.00019465,2]
[388513037,1759227039592,-500.0,0.00019465,2]
[388513038,1759227039602,-500.0,0.00019465,2]
[388513039,1759227039611,-12695.12,0.00019465,2]
[388513040,1759227039621,-1325.21,0.00019465,2]
[388513041,1759227039630,-2447.44,0.00019465,2]
[388513042,1759227039639,-4688.29,0.00019465,2]
[388513043,1759227039649,-500.0,0.00019465,2]
[388513044,1759227039658,-1496.14,0.00019465,2]
[388513045,1759227039668,-5582.25,0.00019465,2]
[388513046,1759227039677,-500.0,0.00019465,2]
[388513047,1759227039687,-8760.69,0.00019465,2]
[388513048,1759227039696,-1080.51,0.00019465,2]
[388513049,1759227039914,-1461.69,0.00019465,2]
[388513050,1759227039926,-3986.73,0.00019465,2]
[388513051,1759227039936,-3750.09,0.00019465,2]
[388513052,1759227039946,-500.0,0.00019465,2]
[388513053,1759227039955,-3488.92,0.00019465,2]
[388513054,1759227039965,-5555.06,0.00019465,2]
[388513055,1759227039975,-1265.94,0.00019465,2]
[388513056,1759227039985,-365.25933737,0.00019466,2]
[388513057,1759227039995,-1483797.40543023,0.00019466,2]
[388513058,1759227040006,-9713.7527896,0.00019466,2]
[388513059,1759227040016,-52753.844223,0.00019466,2]
[388513060,1759227040029,-120823.4301601,0.00019466,2]
[388513061,1759227040040,-525.49723377,0.00019467,2]
[388513062,1759227040050,-500.0,0.00019467,2]
[388513064,1759227040060,-500.0,0.00019467,2]
[388513066,1759227040070,-150.0,0.00019467,2]